[Event "Reykjavik Open 2022"]
[Site "Reykjavik"]
[Date "2022.04.07"]
[Round "3.40"]
[White "Mahitosh Dey"]
[Black "Balzer, Lars"]
[Result "1/2-1/2"]
[ECO "A48"]
[WhiteElo "2176"]
[BlackElo "2018"]
[Annotator "TA"]
[PlyCount "43"]
[EventDate "2022.04.06"]
[EventCountry "ISL"]
[SourceTitle "playchess.com"]
[Source "ChessBase"]
[SourceQuality "1"]
[TimeControl "40/5400+30:1800+30"]

{[%evp 10,43,13,0,-8,-18,0,-8,1,-30,0,0,0,0,0,0,0,0,18,-8,20,0,0,-23,-31,-102,-91,-103,-97,-91,-65,-62,-70,-90,-80,-79]} 1. d4 {[%emt 0:02:39]} Nf6 {[%emt 0:00:25]} 2. Nf3 {[%emt 0:00:26]} g6 {[%emt 0:00:40]} 3. Bf4 {[%emt 0:00:09]} Bg7 {[%emt 0:00:06]} 4. c3 {[%emt 0:00:10]} d6 {[%emt 0:01:26]} 5. Nbd2 {[%emt 0:00:15]} O-O {[%emt 0:01:04]} 6. h3 {[%emt 0:00:03]} b6 {[%emt 0:02:08] A48: 1 d4 Nf6 2 Nf3 g6: Torre, London and Colle Systems.} 7. Qc2 {[%emt 0:00:33]} Bb7 {[%emt 0:00:24]} 8. e4 {[%emt 0:00:07]} Nbd7 {[%emt 0:03:25][%cal Oe7e5] The position is equal.} 9. Be2 {[%emt 0:01:15]} Qe8 {[%emt 0:03:52] [#]} (9... e5 $5 10. Bg5 (10. dxe5 dxe5 11. Be3 Qe7 $11) 10... h6 $11) 10. O-O $146 {[%emt 0:00:17]} ({Predecessor:} 10. Bh2 e5 11. dxe5 dxe5 12. b4 Qe7 13. O-O Bh6 14. Rfe1 Nh5 15. Bc4 Rae8 16. Rad1 {½-½ (31) Zlydneva,D (1799)-Shandrygin,N (2124) Sochi 2014}) 10... e5 {[%emt 0:01:14]} 11. dxe5 {[%emt 0:00:06]} dxe5 {[%emt 0:01:03]} 12. Be3 {[%emt 0:00:09]} Qe7 {[%emt 0:01:45]} 13. b4 {[%emt 0:01:41]} Kh8 {[%emt 0:08:01]} 14. Rab1 {[%emt 0:03:33]} Nh5 {[%emt 0:05:54]} (14... Ne8 $5 {[%cal Re8d6]}) 15. Bd3 {[%emt 0:02:18]} Nf4 {[%emt 0:02:07]} 16. Bxf4 {[%emt 0:00:23]} exf4 {[%emt 0:00:07]} 17. c4 {[%emt 0:00:29]} (17. Rfe1 $15) 17... c5 $17 {[%emt 0:04:50]} 18. a3 {[%emt 0:00:09]} Rfd8 {[%emt 0:05:49]} 19. Rfe1 {[%emt 0:00:32][%cal Oe4e5]} Ne5 {[%emt 0:02:38]} 20. Nxe5 {[%emt 0:00:08]} Qxe5 {[%emt 0:01:27]} 21. Rb3 {[%emt 0:01:16] Prevents Qc3.} Rd7 {[%emt 0:05:28]} 22. Nf3 {[%emt 0:00:12] Weighted Error Value: White=0.14 (very precise) /Black=0.08 (flawless)} 1/2-1/2

[Event "Reykjavik Open 2022"]
[Site "Reykjavik"]
[Date "2022.04.07"]
[Round "3.41"]
[White "Rice, Chris B"]
[Black "Johansson, Carl Fredrik"]
[Result "1-0"]
[ECO "A01"]
[WhiteElo "1989"]
[BlackElo "2216"]
[Annotator "RC"]
[PlyCount "89"]
[EventDate "2022.04.06"]
[EventCountry "ISL"]
[SourceTitle "playchess.com"]
[Source "ChessBase"]
[SourceQuality "1"]
[TimeControl "40/5400+30:1800+30"]

1. b3 {[%emt 0:00:02]} Nf6 {[%emt 0:02:01]} 2. Bb2 {[%emt 0:00:09]} g6 {[%emt 0:00:36]} 3. Bxf6 {[%emt 0:00:10]} exf6 {[%emt 0:00:01]} 4. c4 {[%emt 0:00:08]} Bg7 {[%emt 0:00:51]} 5. Nc3 {[%emt 0:00:12]} f5 {[%emt 0:00:23]} 6. g3 {[%emt 0:00:09]} d6 {[%emt 0:04:24]} 7. Bg2 {[%emt 0:00:15]} Nd7 {[%emt 0:00:51]} 8. e3 {[%emt 0:00:26]} c6 {[%emt 0:02:18]} 9. Nge2 {[%emt 0:01:42]} Nf6 {[%emt 0:04:05]} 10. d3 {[%emt 0:17:19]} Qe7 {[%emt 0:02:36]} 11. O-O {[%emt 0:09:18]} h5 {[%emt 0:03:11]} 12. h4 {[%emt 0:18:40]} Ng4 {[%emt 0:02:37]} 13. Qd2 {[%emt 0:01:52]} g5 {[%emt 0:03:03]} 14. hxg5 {[%emt 0:02:15]} Qxg5 {[%emt 0:04:12]} 15. Nf4 {[%emt 0:05:54]} h4 {[%emt 0:02:08]} 16. f3 {[%emt 0:04:10]} Nf6 {[%emt 0:13:58]} 17. gxh4 {[%emt 0:03:21]} Rxh4 {[%emt 0:01:53]} 18. Kf2 {[%emt 0:07:39]} Nh5 {[%emt 0:08:02]} 19. Nxh5 {[%emt 0:02:09]} Qxh5 {[%emt 0:01:02]} 20. f4 {[%emt 0:03:54]} Rh2 {[%emt 0:02:28]} 21. Rac1 {[%emt 0:06:17]} Bd7 {[%emt 0:02:40]} 22. Rh1 {[%emt 0:06:26]} Qh4+ {[%emt 0:00:14]} 23. Kg1 {[%emt 0:00:15]} Rxh1+ {[%emt 0:00:32]} 24. Bxh1 {[%emt 0:00:05]} O-O-O {[%emt 0:01:11]} 25. Nd1 {[%emt 0:06:42]} Bf6 {[%emt 0:03:09]} 26. Bg2 {[%emt 0:00:54]} Rh8 {[%emt 0:01:33]} 27. Rc2 {[%emt 0:00:26]} Qh2+ {[%emt 0:00:42]} 28. Kf1 {[%emt 0:00:21]} Rg8 {[%emt 0:01:58]} 29. Qe2 {[%emt 0:00:43]} Kb8 {[%emt 0:03:28]} 30. Qf3 {[%emt 0:00:40]} Rg3 {[%emt 0:01:18]} 31. Qf2 {[%emt 0:00:07]} Qh5 {[%emt 0:02:53]} 32. Rd2 {[%emt 0:01:05]} Bh4 {[%emt 0:00:09]} 33. Qe2 {[%emt 0:00:21]} Qg6 {[%emt 0:01:05]} 34. Rc2 {[%emt 0:01:19]} c5 {[%emt 0:05:06]} 35. d4 {[%emt 0:00:23]} cxd4 {[%emt 0:01:33]} 36. exd4 {[%emt 0:00:10]} Qh6 {[%emt 0:03:05]} 37. Qd2 {[%emt 0:01:22]} Rg4 {[%emt 0:00:50]} 38. Qb4 {[%emt 0:00:43]} Qxf4+ {[%emt 0:00:56]} 39. Rf2 {[%emt 0:00:22]} Bc6 {[%emt 0:06:29]} 40. Bxc6 {[%emt 0:00:00]} Rg1+ {[%emt 0:00:00]} 41. Kxg1 {[%emt 0:00:54]} Qg4+ {[%emt 0:02:00]} 42. Bg2 {[%emt 0:18:15]} Qxd1+ {[%emt 0:00:12]} 43. Kh2 {[%emt 0:00:15]} Kc7 {[%emt 0:04:29]} 44. Qxb7+ {[%emt 0:01:08]} Kd8 {[%emt 0:00:00]} 45. Bc6 {[%emt 0:01:16]} 1-0

[Event "Reykjavik Open 2022"]
[Site "Reykjavik"]
[Date "2022.04.07"]
[Round "3.42"]
[White "Villiers, Thomas"]
[Black "Manukonda Arun"]
[Result "1/2-1/2"]
[ECO "A06"]
[WhiteElo "2202"]
[BlackElo "1939"]
[Annotator "TA"]
[PlyCount "171"]
[EventDate "2022.04.06"]
[EventCountry "ISL"]
[SourceTitle "playchess.com"]
[Source "ChessBase"]
[SourceQuality "1"]
[TimeControl "40/5400+30:1800+30"]

{[%evp 121,171,-12841,-12840,-12840,-12841,-12841,-12842,-12843,-12841,-12839,-12839,-12840,0,0,0,0,0,0,0,0,0,0,0,0,0,0,0,0,0,0,0,0,0,0,0,0,0,0,0,0,0,0,0,0,0,0,0,0,0,0,0,0]} 1. Nf3 {[%emt 0:00:04]} d5 {[%emt 0:00:06]} 2. e3 {[%emt 0:00:25]} Nf6 {[%emt 0:02:54]} 3. c4 {[%emt 0:01:26]} c6 {[%emt 0:01:07]} 4. b3 {[%emt 0:01:28]} Bf5 {[%emt 0:00:15]} 5. Bb2 {[%emt 0:00:38]} e6 {[%emt 0:00:11]} 6. Be2 {[%emt 0:00:46]} h6 {[%emt 0:00:50]} 7. O-O {[%emt 0:01:18]} Nbd7 {[%emt 0:00:43]} 8. d4 {[%emt 0:01:25]} Bd6 {[%emt 0:05:10]} 9. Nbd2 {[%emt 0:01:34]} O-O {[%emt 0:00:39]} 10. Ne5 {[%emt 0:00:30]} Ne4 {[%emt 0:04:35]} 11. Nxe4 {[%emt 0:14:32]} Bxe4 {[%emt 0:01:08]} 12. f3 {[%emt 0:01:02]} Bh7 {[%emt 0:00:58]} 13. Nxd7 {[%emt 0:21:05]} Qxd7 {[%emt 0:01:04]} 14. Bd3 {[%emt 0:00:12]} Bxd3 {[%emt 0:07:44]} 15. Qxd3 {[%emt 0:07:10]} Qc7 {[%emt 0:01:32]} 16. h3 {[%emt 0:00:27]} dxc4 {[%emt 0:10:11]} 17. Qxc4 {[%emt 0:03:41]} Qa5 {[%emt 0:03:18]} 18. Qd3 {[%emt 0:09:47]} Ba3 {[%emt 0:06:21]} 19. Bc3 {[%emt 0:01:24]} Bb4 {[%emt 0:00:27]} 20. Bxb4 {[%emt 0:00:10]} Qxb4 {[%emt 0:00:02]} 21. Rac1 {[%emt 0:00:18]} Rfd8 {[%emt 0:00:28]} 22. Rfd1 {[%emt 0:01:20]} Qa3 {[%emt 0:03:52]} 23. Rc4 {[%emt 0:04:18]} a5 {[%emt 0:07:44]} 24. Ra4 {[%emt 0:04:13]} Qe7 {[%emt 0:03:41]} 25. Qc3 {[%emt 0:00:17]} Qg5 {[%emt 0:01:05]} 26. Rc4 {[%emt 0:00:46]} Qb5 {[%emt 0:06:40]} 27. Rc1 {[%emt 0:01:38]} Rd5 {[%emt 0:01:12]} 28. Qe1 {[%emt 0:03:39]} Rad8 {[%emt 0:04:44]} 29. Rc5 {[%emt 0:02:18]} Qd3 {[%emt 0:01:31]} 30. R1c3 {[%emt 0:02:50]} Qg6 {[%emt 0:00:33]} 31. Rc1 {[%emt 0:02:38]} Qd3 {[%emt 0:04:46]} 32. Qc3 {[%emt 0:00:16]} Qe2 {[%emt 0:03:17]} 33. Rc4 {[%emt 0:00:34]} Rg5 {[%emt 0:00:38]} 34. Qc2 {[%emt 0:05:36]} Qxe3+ {[%emt 0:04:33]} 35. Qf2 {[%emt 0:00:39]} Qxf2+ {[%emt 0:00:37]} 36. Kxf2 {[%emt 0:00:07]} Rgd5 {[%emt 0:00:05]} 37. Ke3 {[%emt 0:00:27]} e5 {[%emt 0:02:43]} 38. dxe5 {[%emt 0:00:16]} Rxe5+ {[%emt 0:00:02]} 39. Re4 {[%emt 0:00:14]} Rxe4+ {[%emt 0:02:06]} 40. fxe4 {[%emt 0:00:00]} Kf8 {[%emt 0:00:00]} 41. Rc5 {[%emt 0:01:46]} Ra8 {[%emt 0:01:29]} 42. Kd4 {[%emt 0:00:37]} Ke7 {[%emt 0:00:13]} 43. Rf5 {[%emt 0:00:36]} b6 {[%emt 0:01:15]} 44. Rf2 {[%emt 0:03:26]} Ke6 {[%emt 0:02:34]} 45. Rc2 {[%emt 0:00:21]} Rc8 {[%emt 0:01:45]} 46. Rc1 {[%emt 0:02:46]} Rd8+ {[%emt 0:01:16]} 47. Ke3 {[%emt 0:00:08]} c5 {[%emt 0:00:15]} 48. a3 {[%emt 0:06:32]} Rd4 {[%emt 0:00:46]} 49. Rf1 {[%emt 0:03:28]} f6 {[%emt 0:00:25]} 50. Rf2 {[%emt 0:03:09]} g6 {[%emt 0:01:51]} 51. Rc2 {[%emt 0:01:43]} Ke5 {[%emt 0:00:16]} 52. Rc4 {[%emt 0:00:14]} Rxc4 {[%emt 0:00:39]} 53. bxc4 {[%emt 0:00:01]} a4 {[%emt 0:00:50]} 54. g3 {[%emt 0:02:22]} h5 {[%emt 0:00:35]} 55. h4 {[%emt 0:03:48]} Ke6 {[%emt 0:04:54]} 56. Kf2 {[%emt 0:02:23]} Kd6 {[%emt 0:00:18]} 57. Ke2 {[%emt 0:00:21]} Kc6 {[%emt 0:00:18]} 58. Kd3 {[%emt 0:03:34]} b5 {[%emt 0:03:07]} 59. Kc3 {[%emt 0:01:58]} Kb6 {[%emt 0:01:10]} 60. cxb5 {[%emt 0:00:13]} Kxb5 {[%emt 0:00:02]} 61. Kd3 {[%emt 0:00:10]} Kb6 {[%emt 0:00:19]} 62. Kc3 {[%emt 0:04:41]} Kc7 {[%emt 0:01:39]} 63. Kd3 {[%emt 0:00:31]} Kd6 {[%emt 0:00:26]} 64. Kc4 {[%emt 0:00:30]} Kc6 {[%emt 0:00:21]} 65. Kd3 {[%emt 0:00:15]} Kb5 {[%emt 0:02:33]} 66. Kc3 {[%emt 0:00:16]} g5 $2 {[%emt 0:01:49]} (66... c4 $19 {( -> ...Kc5)} 67. Kc2 Kc6) 67. e5 $1 $11 {[%emt 0:01:32]} gxh4 {[%emt 0:00:30]} (67... fxe5 $2 68. hxg5 Kc6 69. g6 $18) 68. exf6 {[%emt 0:00:07]} hxg3 {[%emt 0:02:15]} (68... h3 $5 69. f7 h2 $11) 69. f7 {[%emt 0:00:06]} g2 {[%emt 0:00:01]} 70. f8=Q {[%emt 0:00:09]} g1=Q {[%emt 0:00:09]} 71. Qe8+ {[%emt 0:00:19]} Kb6 {[%emt 0:01:34]} 72. Qd8+ {[%emt 0:01:38]} Kc6 {[%emt 0:00:25]} 73. Qe8+ {[%emt 0:01:59]} Kd6 {[%emt 0:00:15]} 74. Qd8+ {[%emt 0:02:12]} Ke6 {[%emt 0:01:51]} 75. Qe8+ {[%emt 0:00:10]} Kf6 {[%emt 0:00:22]} 76. Qf8+ {[%emt 0:00:59]} Ke5 {[%emt 0:00:16]} 77. Qe7+ {[%emt 0:00:16]} Kf4 {[%emt 0:00:24]} 78. Qf6+ $1 {[%emt 0:00:23]} Ke4 {[%emt 0:02:21]} 79. Qe6+ {[%emt 0:00:17]} Kf3 {[%emt 0:00:29]} 80. Qf5+ {[%emt 0:00:09]} Kg2 {[%emt 0:00:57]} 81. Qg6+ {[%emt 0:02:25]} Kf1 {[%emt 0:00:39]} 82. Qd3+ {[%emt 0:00:30]} Kg2 {[%emt 0:02:58]} 83. Qg6+ {[%emt 0:00:09]} Kf2 {[%emt 0:01:40]} 84. Qf5+ {[%emt 0:00:12]} Ke1 {[%emt 0:00:51]} 85. Qb1+ {[%emt 0:00:07]} Kf2 {[%emt 0:00:17]} 86. Qf5+ {[%emt 0:01:24]} 1/2-1/2

[Event "Reykjavik Open 2022"]
[Site "Reykjavik"]
[Date "2022.04.07"]
[Round "3.43"]
[White "Cherniack, Alex"]
[Black "Carlsson, Gustav"]
[Result "1-0"]
[ECO "C02"]
[WhiteElo "2213"]
[BlackElo "1996"]
[Annotator "TA"]
[PlyCount "89"]
[EventDate "2022.04.06"]
[EventCountry "ISL"]
[SourceTitle "playchess.com"]
[Source "ChessBase"]
[SourceQuality "1"]
[TimeControl "40/5400+30:1800+30"]

{[%evp 16,89,2,9,22,5,29,27,41,39,44,36,38,38,46,38,66,64,109,109,110,110,110,110,111,87,88,40,42,31,19,14,193,77,184,54,110,0,35,-45,33,35,37,29,40,30,40,19,43,37,118,110,115,124,305,83,412,428,416,413,904,871,910,635,2828,2607,29993,29986,29994,29995,29995,29996,29996,29997,29997,2167]} 1. e4 {[%emt 0:00:04][%cal Be2e4,Be4e5][%mdl 32]} e6 {[%emt 0:00:09]} 2. d4 {[%emt 0:00:10]} d5 {[%emt 0:00:06]} 3. e5 {[%emt 0:00:09]} c5 {[%emt 0:00:08]} 4. c3 {[%emt 0:00:05]} Nc6 {[%emt 0:00:07]} 5. Nf3 {[%emt 0:00:08]} Qb6 {[%emt 0:00:05]} 6. a3 {[%emt 0:00:15]} c4 {[%emt 0:00:23]} 7. Nbd2 {[%emt 0:02:13]} Na5 {[%emt 0:01:51]} 8. Be2 {[%emt 0:00:26]} Bd7 {[%emt 0:00:14]} 9. O-O {[%emt 0:00:34]} g6 {[%emt 0:02:18] C02: French: Advance Variation.} 10. Re1 {[%emt 0:01:23]} Bg7 {[%emt 0:00:30]} 11. Rb1 {[%emt 0:01:12] [#]} Rc8 $146 {[%emt 0:02:50] White has an edge.} ({Predecessor:} 11... Ne7 12. h4 h5 13. Ng5 Nf5 14. g3 f6 15. exf6 Bxf6 16. Ndf3 Kf8 17. Bf4 Kg7 {1-0 (31) Campbell,M (2013)-Asbury,J (1786) England 2010}) 12. h4 {[%emt 0:07:56]} h5 {[%emt 0:02:55]} 13. Nf1 {[%emt 0:01:24]} Qb3 {[%emt 0:15:53]} 14. Bg5 {[%emt 0:09:37]} Ba4 {[%emt 0:13:37]} 15. Qd2 {[%emt 0:03:14]} Qb5 {[%emt 0:04:46]} 16. b4 {[%emt 0:08:38]} Nb3 {[%emt 0:05:57]} 17. Qf4 {[%emt 0:01:13]} Qa6 {[%emt 0:02:24]} 18. Rb2 {[%emt 0:01:20]} Bb5 {[%emt 0:01:49]} 19. Ra2 {[%emt 0:00:07]} Qc6 {[%emt 0:00:40]} 20. N3h2 {[%emt 0:01:23]} Bh6 {[%emt 0:03:45]} 21. g4 {[%emt 0:04:55]} (21. Ne3 $16) 21... Bxg5 $14 {[%emt 0:02:22]} 22. Qxg5 {[%emt 0:00:20][%cal Rg4h5]} hxg4 {[%emt 0:07:11]} 23. Nxg4 {[%emt 0:00:55] Threatens to win with Nf6+.} Rh5 $2 {[%emt 0:01:57] [#]} (23... Kd7 $1 $11) 24. Qf4 {[%emt 0:00:11]} (24. Nf6+ $1 $18 {is the precise move to win.} Nxf6 25. Qxf6) 24... Qc7 {[%emt 0:07:08]} (24... Ba4 $16) 25. Nge3 {[%emt 0:12:05]} (25. a4 $18 Bc6 26. Nfh2) 25... Rh7 {[%emt 0:01:49]} ({Black should play} 25... Rh8 $14) 26. Ng2 {[%emt 0:04:45]} (26. Nh2 $16) 26... Qe7 {[%emt 0:03:20]} 27. Ng3 {[%emt 0:03:10]} (27. a4 $14 Bd7 28. Nfe3) 27... a5 {[%emt 0:01:49]} ({Better is} 27... Ba4 $15) 28. a4 {[%emt 0:10:12]} Bd7 {[%emt 0:00:09]} 29. b5 {[%emt 0:00:04]} Kd8 {[%emt 0:02:15]} 30. Bd1 {[%emt 0:03:21]} Kc7 {[%emt 0:01:33]} 31. Bc2 {[%emt 0:00:24]} Kb6 {[%emt 0:01:00]} 32. Rb1 {[%emt 0:01:14][%cal Be1b1,Bb1b3,Bb3c3,Bc3c4][%mdl 32]} Rf8 {[%emt 0:00:27]} (32... Qd8 $14) 33. Bxb3 $16 {[%emt 0:01:10]} cxb3 {[%emt 0:00:07]} 34. Rxb3 {[%emt 0:00:03][%cal Oc3c4] c4! is the strong threat.} f6 $2 {[%emt 0:00:15]} (34... Rc8 $16 {is a better defense.}) 35. Qe3 $2 {[%emt 0:03:39]} (35. Rc2 $18 {has better winning chances.}) 35... f5 $2 {[%emt 0:01:35][%mdl 8192]} (35... Rc8 $16 {is a better chance.}) 36. c4 $18 {[%emt 0:05:22]} dxc4 {[%emt 0:04:47]} 37. Rc3 {[%emt 0:00:48]} ({Weaker is} 37. d5+ Qc5 38. Rc3 (38. Nf4 $2 cxb3 39. Rb2 Qxe3 $19) 38... exd5 $15) 37... Nh6 {[%emt 0:00:22]} (37... Kc7 $142 38. d5 exd5) 38. Rxc4 {[%emt 0:02:50]} Ng4 {[%emt 0:00:23]} 39. Qd2 {[%emt 0:00:48] [#] Threatening mate with d5.} f4 {[%emt 0:01:13]} 40. d5 {[%emt 0:00:00][%cal Bd4d5,Bd5c6][%mdl 32] White wants to mate with Qd4+.} Ka7 {[%emt 0:00:00]} 41. Qxa5+ {[%emt 0:00:28] White mates.} Kb8 {[%emt 0:01:31]} 42. b6 {[%emt 0:00:42][%csl Gb6][%cal Ra5a7]} Bc6 {[%emt 0:00:49]} 43. Qa7+ {[%emt 0:00:39]} Kc8 {[%emt 0:00:12]} 44. Qa8+ {[%emt 0:00:09]} Kd7 {[%emt 0:00:02]} 45. dxc6+ {[%emt 0:00:06] Weighted Error Value: White=0.45/Black=0.68} 1-0

[Event "Reykjavik Open 2022"]
[Site "Reykjavik"]
[Date "2022.04.07"]
[Round "3.44"]
[White "Jaksland, Tim"]
[Black "Gregersen, Einar"]
[Result "1/2-1/2"]
[ECO "B22"]
[WhiteElo "2201"]
[BlackElo "1801"]
[Annotator "TA"]
[PlyCount "68"]
[EventDate "2022.04.06"]
[EventCountry "ISL"]
[SourceTitle "playchess.com"]
[Source "ChessBase"]
[SourceQuality "1"]
[TimeControl "40/5400+30:1800+30"]

{[%evp 17,68,14,19,18,18,11,15,4,8,5,17,6,19,13,14,3,13,0,291,252,343,131,129,106,144,108,112,89,108,54,45,50,93,89,89,76,81,81,174,37,41,38,70,58,51,0,17,0,47,0,29,0,46]} 1. e4 {[%emt 0:00:03]} c5 {[%emt 0:00:13]} 2. c3 {[%emt 0:00:06]} Nf6 {[%emt 0:00:38]} 3. e5 {[%emt 0:00:06]} Nd5 {[%emt 0:00:07]} 4. Nf3 {[%emt 0:00:36]} Nc6 {[%emt 0:01:32]} 5. d4 {[%emt 0:00:20]} cxd4 {[%emt 0:02:44]} 6. cxd4 {[%emt 0:00:09]} d6 {[%emt 0:02:09]} 7. Bc4 {[%emt 0:01:00]} Nb6 {[%emt 0:01:07]} 8. Bb5 {[%emt 0:01:13]} Bd7 {[%emt 0:05:32]} 9. exd6 {[%emt 0:02:10]} exd6 {[%emt 0:04:39]} 10. Nc3 {[%emt 0:05:54] B22: Sicilian: 2 c3.} d5 {[%emt 0:03:13]} 11. O-O {[%emt 0:03:31]} Be7 {[%emt 0:03:33] [#]} 12. Re1 $146 {[%emt 0:16:38]} ({Predecessor:} 12. Bd3 Bg4 13. Be3 O-O 14. a3 f5 15. h3 Bh5 16. Be2 f4 17. Bc1 Qd6 18. Re1 Bf6 19. Nb5 Qb8 20. Nc3 Qd6 21. Nb5 Qb8 22. Nc3 {½-½ (22) Dmochowska,A (1819)-Szyler,B (1755) Wroclaw 2013}) 12... O-O {[%emt 0:02:13]} 13. h3 {[%emt 0:04:35]} a6 {[%emt 0:07:25]} 14. Bd3 {[%emt 0:00:51]} Bf6 {[%emt 0:02:30]} 15. Bf4 {[%emt 0:18:56]} Be6 {[%emt 0:12:15]} 16. Rc1 {[%emt 0:13:51]} Rc8 {[%emt 0:02:38]} 17. Bb1 {[%emt 0:02:02]} h6 $2 {[%emt 0:04:57][%mdl 8192]} (17... g6 $11 {and Black stays safe.}) 18. Qd3 {[%emt 0:07:51][%csl Gb1][%cal Rd3h7]} g6 {[%emt 0:01:44] [#]} 19. Bxh6 {[%emt 0:03:02]} (19. Rxe6 $1 $18 {[%mdl 512] is the precise move to win.} Nb4 20. Qe2 fxe6 21. Qxe6+ Kh7 22. Ne5) 19... Re8 $16 {[%emt 0:04:10]} 20. Qd1 {[%emt 0:04:02] &Bianco is more active.} Qd7 {[%emt 0:02:27][%cal Oe6h3]} 21. Bf4 {[%emt 0:04:43]} Bf5 {[%emt 0:05:48]} 22. Rxe8+ {[%emt 0:04:20]} Rxe8 {[%emt 0:00:08]} 23. b3 {[%emt 0:02:15]} (23. Bxf5 $16 Qxf5 24. Bg3) 23... Be4 $14 {[%emt 0:05:50]} 24. Ne5 {[%emt 0:02:00]} Nxe5 {[%emt 0:01:10]} 25. dxe5 {[%emt 0:00:57]} Bxe5 {[%emt 0:01:23]} 26. Bxe5 {[%emt 0:01:03]} Rxe5 {[%emt 0:00:38]} 27. Qd4 {[%emt 0:00:52][%csl LRb6,LRe4,LRe5]} Qe6 {[%emt 0:07:40]} (27... Re6 $16) 28. Rd1 {[%emt 0:00:16]} (28. Re1 $18) 28... Bxb1 {[%emt 0:00:24]} 29. Rxb1 {[%emt 0:00:01]} Nd7 {[%emt 0:01:19]} 30. Rd1 {[%emt 0:00:28][%cal Rc3d5]} (30. f4 $5 {[%cal Rf4e5]} Rh5 31. Kf1 $14) 30... Nf6 {[%emt 0:00:41]} 31. Qd2 {[%emt 0:01:24]} ({Better is} 31. a4 $14) 31... Qf5 {[%emt 0:01:33]} 32. Qd4 {[%emt 0:00:21]} Qe6 {[%emt 0:02:23]} 33. Qd2 {[%emt 0:00:28]} Qf5 {[%emt 0:00:33]} 34. Qd4 {[%emt 0:00:25]} Qe6 {[%emt 0:00:49] Black defended with fortune.  Weighted Error Value: White=0.39/Black=0.34} 1/2-1/2

[Event "Reykjavik Open 2022"]
[Site "Reykjavik"]
[Date "2022.04.07"]
[Round "3.45"]
[White "Filipovich, David"]
[Black "Lohia, Sohum"]
[Result "0-1"]
[ECO "A46"]
[WhiteElo "1975"]
[BlackElo "2251"]
[Annotator "TA"]
[PlyCount "76"]
[EventDate "2022.04.06"]
[EventCountry "ISL"]
[SourceTitle "playchess.com"]
[Source "ChessBase"]
[SourceQuality "1"]
[TimeControl "40/5400+30:1800+30"]

{[%evp 9,75,9,23,-2,0,-8,29,10,15,-27,-7,-10,-19,-12,-20,-19,-16,-30,11,0,0,0,35,0,0,0,0,0,0,0,0,0,0,0,0,0,0,0,11,0,0,0,0,0,0,-27,-52,-53,-23,-541,-191,-155,-52,-622,-612,-1372,-1332,-1320,-1250,-1158,-1107,-6170,-6170,-5265,-1821,-29987,-1398,-29999]} 1. Nf3 {[%emt 0:00:19]} Nf6 {[%emt 0:00:07]} 2. g3 {[%emt 0:00:21]} e6 {[%emt 0:00:09]} 3. Bg2 {[%emt 0:00:22]} d5 {[%emt 0:00:08]} 4. O-O {[%emt 0:00:56]} b5 {[%emt 0:00:07]} 5. d4 {[%emt 0:04:21]} Bb7 {[%emt 0:00:18]} 6. Nbd2 {[%emt 0:04:07] A46: 1 d4 Nf6 2 Nf3 e6: Torre, London and Colle Systems.} Nbd7 {[%emt 0:00:35]} 7. a4 {[%emt 0:03:47]} a6 {[%emt 0:01:59]} 8. c3 {[%emt 0:01:54] White has an edge.} c5 {[%emt 0:02:40] [#]} 9. e3 $146 {[%emt 0:20:39]} ({Predecessor:} 9. axb5 axb5 10. Rxa8 Qxa8 11. dxc5 Bxc5 12. Nb3 Be7 13. Nfd4 Qa6 14. Qd3 b4 15. Qxa6 Bxa6 {½-½ (69) Lodhi,M (2347)-Georgiev,K (2623) Riadh 2017}) 9... Bd6 {[%emt 0:01:08]} 10. Qe2 {[%emt 0:02:03][%cal Oe3e4]} O-O {[%emt 0:08:04]} 11. e4 {[%emt 0:05:23]} Nxe4 {[%emt 0:06:58]} 12. Nxe4 {[%emt 0:00:27]} dxe4 {[%emt 0:00:07]} 13. Ng5 {[%emt 0:00:26]} Nf6 {[%emt 0:10:42]} 14. Nxe4 {[%emt 0:01:40]} Nxe4 {[%emt 0:00:18]} 15. Bxe4 {[%emt 0:00:07]} Qb6 {[%emt 0:06:33]} 16. Bxb7 {[%emt 0:08:16]} Qxb7 {[%emt 0:00:08]} 17. dxc5 {[%emt 0:00:28]} Bxc5 {[%emt 0:00:12]} 18. Be3 {[%emt 0:01:35]} Bxe3 {[%emt 0:01:48]} 19. Qxe3 {[%emt 0:07:16]} Rfd8 {[%emt 0:08:41]} 20. axb5 {[%emt 0:06:56]} axb5 {[%emt 0:00:57]} 21. Rxa8 {[%emt 0:03:14]} Qxa8 $11 {[%emt 0:00:29][%mdl 4096] Endgame KQR-KQR} 22. Qe2 {[%emt 0:02:11]} Qd5 {[%emt 0:01:24]} 23. Ra1 {[%emt 0:00:27]} Qb3 {[%emt 0:01:37]} 24. Ra5 {[%emt 0:03:12]} Rd1+ {[%emt 0:02:55]} 25. Kg2 {[%emt 0:00:08] Ra8+ would kill now.} Qd5+ {[%emt 0:00:45]} 26. Kh3 {[%emt 0:04:06][%cal Oe2d1] Hoping for Qxd1!} Rg1 {[%emt 0:10:05]} 27. Rxb5 {[%emt 0:04:22] Threatening mate with Rb8+.} Qg2+ {[%emt 0:00:19]} 28. Kg4 {[%emt 0:00:17][%cal Rb5b8]} h6 $1 {[%emt 0:01:14][%mdl 1024] Black has compensation.} 29. Rb8+ $2 {[%emt 0:07:46]} (29. Kf4 $1 $11) 29... Kh7 $19 {[%emt 0:00:08] aiming for ...Rf1.} 30. Kf4 {[%emt 0:00:55]} f5 {[%emt 0:09:46] Inhibits Qe4.} (30... Qxh2 $17 {[%cal Og1g3] White must now prevent ...Rxg3!} 31. Ke3 Rxg3+ $1 {[%mdl 512]} 32. fxg3 Qxg3+ 33. Kd2 Qxb8) 31. Re8 $2 {[%emt 0:03:04][%mdl 8192]} (31. Qxe6 {is a self mate.} Qxf2+ 32. Ke5 Qc5+ 33. Qd5 Re1+ 34. Kxf5 Qxd5+ 35. Kg4 Qe6+ 36. Kh4 Re4+ 37. Kh5 Qh3#) (31. Rb4 $15) 31... Qd5 {[%emt 0:05:58]} 32. h4 {[%emt 0:02:32]} Qd6+ {[%emt 0:06:11]} 33. Ke3 {[%emt 0:00:19]} Qb6+ {[%emt 0:00:27]} 34. Kf4 {[%emt 0:02:37]} Rg2 {[%emt 0:08:40]} 35. Qe1 {[%emt 0:00:48]} Rxf2+ {[%emt 0:01:54]} 36. Ke5 {[%emt 0:00:06] [#]} Rf3 {[%emt 0:03:11]} (36... Qc6 $142 $1 {[%mdl 512]} 37. c4 {[#]} Qxc4 $1) 37. Qd1 {[%emt 0:01:01]} Qb5+ {[%emt 0:00:36]} (37... Qc5+ $142 38. Kxe6 Qc6+ 39. Ke5 Qxe8+ 40. Kd5 Qd8+ 41. Kc4 Qxd1 42. Kc5 Rxg3 43. Kc6 Rg6+ 44. Kc5 Qa4 45. b4 Qc6+ 46. Kd4 Rg4+ 47. Ke3 Qe4+ 48. Kf2 Rg2+ 49. Kf1 Qe2#) 38. Kd4 {[%emt 0:00:18]} Qd5# {[%emt 0:00:05] Weighted Error Value: White=1.22/Black=0.47} 0-1